[Event "Smuk Skak GM Tournament 2021"]
[Site "Skanderborg, Denmark"]
[Date "2021.08.21"]
[Round "8.3"]
[White "Ochsner, Bjørn Møller"]
[Black "Antolak, Julia"]
[Result "1-0"]
[TimeControl "90 minutes + 30 minutes at move 40, 30 secs pr move from move 1"]
[WhiteTitle "IM"]
[BlackTitle "WIM"]
[WhiteFideId "1416928"]
[BlackFideId "1159569"]
[WhiteElo "2506"]
[BlackElo "2340"]

1. Nf3 {[%clk 01:30:56]} {[%emt 05:53:40]} Nf6 {[%clk 01:30:54]} 2. c4 {[%clk
01:30:53]} {[%emt 00:00:32]} e6 {[%clk 01:31:16]} {[%emt 00:00:08]} 3. Nc3
{[%clk 01:30:00]} {[%emt 00:01:24]} Bb4 {[%clk 01:30:56]} {[%emt 00:00:50]} 4.
e3 {[%clk 01:25:17]} {[%emt 00:05:13]} b6 {[%clk 01:25:24]} {[%emt 00:06:03]} 5.
Qc2 {[%clk 01:20:54]} {[%emt 00:04:52]} Bb7 {[%clk 01:23:29]} {[%emt 00:02:25]}
6. a3 {[%clk 01:20:04]} {[%emt 00:01:21]} Be7 {[%clk 01:23:16]} {[%emt
00:00:43]} 7. b4 {[%clk 00:51:04]} {[%emt 00:29:29]} a5 {[%clk 01:16:40]}
{[%emt 00:07:05]} 8. b5 {[%clk 00:50:28]} {[%emt 00:01:07]} d6 {[%clk
01:16:30]} {[%emt 00:00:40]} 9. d4 {[%clk 00:43:59]} {[%emt 00:06:59]} Nbd7
{[%clk 01:15:42]} {[%emt 00:01:18]} 10. Be2 {[%clk 00:43:28]} {[%emt 00:01:01]}
O-O {[%clk 01:15:21]} {[%emt 00:00:50]} 11. O-O {[%clk 00:43:42]} {[%emt
00:00:17]} Re8 {[%clk 01:13:21]} {[%emt 00:02:30]} 12. Rd1 {[%clk 00:38:12]}
{[%emt 00:05:59]} Bf8 {[%clk 01:13:14]} {[%emt 00:00:37]} 13. e4 {[%clk
00:32:36]} {[%emt 00:06:07]} e5 {[%clk 01:07:09]} {[%emt 00:06:35]} 14. dxe5
{[%clk 00:30:22]} {[%emt 00:02:44]} dxe5 {[%clk 01:06:44]} {[%emt 00:00:55]} 15.
Bg5 {[%clk 00:28:48]} {[%emt 00:02:04]} Qc8 {[%clk 01:03:20]} {[%emt 00:03:54]}
16. Ra2 {[%clk 00:24:50]} {[%emt 00:04:27]} h6 {[%clk 00:59:22]} {[%emt
00:04:28]} 17. Bh4 {[%clk 00:24:51]} {[%emt 00:00:29]} Bd6 {[%clk 00:49:57]}
{[%emt 00:09:55]} 18. Nd2 {[%clk 00:19:35]} {[%emt 00:05:46]} g5 {[%clk
00:45:01]} {[%emt 00:05:27]} 19. Bg3 {[%clk 00:19:59]} {[%emt 00:00:07]} Nf8
{[%clk 00:45:16]} {[%emt 00:00:15]} 20. Nd5 {[%clk 00:19:13]} {[%emt 00:01:15]}
Bxd5 {[%clk 00:45:21]} {[%emt 00:00:25]} 21. cxd5 {[%clk 00:15:47]} {[%emt
00:03:56]} Ng6 {[%clk 00:43:52]} {[%emt 00:01:59]} 22. Nc4 {[%clk 00:14:06]}
{[%emt 00:02:11]} Qd8 {[%clk 00:38:58]} {[%emt 00:05:24]} 23. Ne3 {[%clk
00:10:13]} {[%emt 00:04:23]} Bc5 {[%clk 00:33:30]} {[%emt 00:05:58]} 24. Nf5
{[%clk 00:09:54]} {[%emt 00:00:49]} Kh7 {[%clk 00:29:00]} {[%emt 00:05:00]} 25.
h3 {[%clk 00:08:21]} {[%emt 00:02:04]} Rg8 {[%clk 00:26:47]} {[%emt 00:02:44]}
26. Qc4 {[%clk 00:03:50]} {[%emt 00:05:00]} Qf8 {[%clk 00:26:00]} {[%emt
00:01:17]} 27. a4 {[%clk 00:03:55]} {[%emt 00:00:25]} Rd8 {[%clk 00:24:46]}
{[%emt 00:01:43]} 28. Rad2 {[%clk 00:02:43]} {[%emt 00:01:42]} Ne8 {[%clk
00:22:54]} {[%emt 00:02:23]} 29. Qc2 {[%clk 00:02:01]} {[%emt 00:01:12]} f6
{[%clk 00:20:57]} {[%emt 00:02:27]} 30. Bg4 {[%clk 00:01:42]} {[%emt 00:00:48]}
Kh8 {[%clk 00:20:19]} {[%emt 00:01:08]} 31. Rd3 {[%clk 00:01:37]} {[%emt
00:00:35]} Nd6 {[%clk 00:17:47]} {[%emt 00:03:02]} 32. Rc3 {[%clk 00:01:39]}
{[%emt 00:00:28]} Ne7 {[%clk 00:11:15]} {[%emt 00:07:03]} 33. Ne3 {[%clk
00:01:17]} {[%emt 00:00:52]} Qg7 {[%clk 00:09:38]} {[%emt 00:02:07]} 34. Be6
{[%clk 00:00:49]} {[%emt 00:00:58]} Rgf8 {[%clk 00:09:49]} {[%emt 00:00:18]} 35.
Rc1 {[%clk 00:00:38]} {[%emt 00:00:41]} Nb7 {[%clk 00:04:12]} {[%emt 00:06:07]}
36. Kh1 {[%clk 00:00:49]} {[%emt 00:00:19]} Nc8 {[%clk 00:03:56]} {[%emt
00:00:46]} 37. f3 {[%clk 00:00:37]} {[%emt 00:00:41]} Ncd6 {[%clk 00:01:49]}
{[%emt 00:02:37]} 38. Bf2 {[%clk 00:00:59]} {[%emt 00:00:09]} Rfe8 {[%clk
00:01:20]} {[%emt 00:00:58]} 39. Nf5 {[%clk 00:01:07]} {[%emt 00:00:21]} Nxf5
{[%clk 00:00:50]} {[%emt 00:01:00]} 40. Bxf5 {[%clk 00:01:20]} {[%emt
00:00:17]} Qe7 {[%clk 00:00:51]} {[%emt 00:00:29]} 41. Bxc5 {[%clk 00:26:22]}
{[%emt 00:05:28]} Nxc5 {[%clk 00:31:16]} {[%emt 00:00:05]} 42. Rxc5 {[%clk
00:24:56]} {[%emt 00:01:56]} bxc5 {[%clk 00:31:36]} {[%emt 00:00:10]} 43. Qxc5
{[%clk 00:25:24]} {[%emt 00:00:02]} Qxc5 {[%clk 00:31:02]} {[%emt 00:01:04]} 44.
Rxc5 {[%clk 00:25:52]} {[%emt 00:00:02]} Re7 {[%clk 00:30:46]} {[%emt
00:00:46]} 45. Rc6 {[%clk 00:25:40]} {[%emt 00:00:42]} Kg7 {[%clk 00:27:23]}
{[%emt 00:03:53]} 46. Ra6 {[%clk 00:23:13]} {[%emt 00:02:57]} Rd6 {[%clk
00:17:50]} {[%emt 00:10:03]} 47. Rxa5 {[%clk 00:21:52]} {[%emt 00:01:52]} Kf8
{[%clk 00:17:46]} {[%emt 00:00:33]} 48. Kg1 {[%clk 00:20:17]} {[%emt 00:02:05]}
Rb6 {[%clk 00:16:38]} {[%emt 00:01:39]} 49. Kf2 {[%clk 00:17:51]} {[%emt
00:02:56]} Re8 {[%clk 00:16:42]} {[%emt 00:00:26]} 50. Bd7 {[%clk 00:17:54]}
{[%emt 00:00:28]} Rd8 {[%clk 00:11:36]} {[%emt 00:05:36]} 51. Bc6 {[%clk
00:17:50]} {[%emt 00:00:33]} Ke7 {[%clk 00:11:50]} {[%emt 00:00:16]} 52. Ra7
{[%clk 00:11:15]} {[%emt 00:07:06]} Kd6 {[%clk 00:11:42]} {[%emt 00:00:37]} 53.
Ke3 {[%clk 00:11:26]} {[%emt 00:00:19]} Rc8 {[%clk 00:08:00]} {[%emt 00:04:12]}
54. Kd3 {[%clk 00:11:42]} {[%emt 00:00:14]} Kc5 {[%clk 00:08:06]} {[%emt
00:00:24]} 55. Kc3 {[%clk 00:07:08]} {[%emt 00:05:04]} Rbb8 {[%clk 00:07:47]}
{[%emt 00:00:49]} 56. a5 {[%clk 00:05:42]} {[%emt 00:01:57]} h5 {[%clk
00:06:29]} {[%emt 00:01:47]} 57. Bd7 {[%clk 00:03:34]} {[%emt 00:02:39]} Rd8
{[%clk 00:06:32]} {[%emt 00:00:27]} 58. Rxc7+ {[%clk 00:03:51]} {[%emt
00:00:13]} Kd6 {[%clk 00:06:57]} {[%emt 00:00:05]} 59. b6 {[%clk 00:04:15]}
{[%emt 00:00:06]} Rxd7 {[%clk 00:06:33]} {[%emt 00:00:54]} 60. Rc6+ {[%clk
00:03:15]} {[%emt 00:01:30]} Ke7 {[%clk 00:06:59]} {[%emt 00:00:04]} 61. a6
{[%clk 00:03:16]} {[%emt 00:00:28]} h4 {[%clk 00:06:05]} {[%emt 00:01:24]} 62.
Kb4 {[%clk 00:03:23]} {[%emt 00:00:24]} Kd8 {[%clk 00:04:56]} {[%emt 00:01:39]}
63. Ka5 {[%clk 00:03:20]} {[%emt 00:00:33]} f5 {[%clk 00:04:22]} {[%emt
00:01:03]} 64. a7 {[%clk 00:03:33]} {[%emt 00:00:17]} Ra8 {[%clk 00:04:48]}
{[%emt 00:00:04]} 65. Ka6 {[%clk 00:03:55]} {[%emt 00:00:09]} fxe4 {[%clk
00:04:47]} {[%emt 00:00:30]} 66. fxe4 {[%clk 00:04:18]} {[%emt 00:00:07]} 1-0

[Event "Smuk Skak GM Tournament 2021"]
[Site "Skanderborg, Denmark"]
[Date "2021.08.21"]
[Round "8.4"]
[White "Janik, Igor"]
[Black "Olsen, Filip Boe"]
[Result "1-0"]
[TimeControl "90 minutes + 30 minutes at move 40, 30 secs pr move from move 1"]
[WhiteTitle "IM"]
[BlackTitle "IM"]
[WhiteFideId "1159259"]
[BlackFideId "1440640"]
[WhiteElo "2500"]
[BlackElo "2397"]

1. d4 {[%clk 01:30:59]} {[%emt 05:53:40]} Nf6 {[%clk 01:30:39]} {[%emt
00:00:12]} 2. c4 {[%clk 01:31:21]} {[%emt 00:00:08]} e6 {[%clk 01:30:59]}
{[%emt 00:00:09]} 3. g3 {[%clk 01:31:46]} {[%emt 00:00:06]} d5 {[%clk
01:31:14]} {[%emt 00:00:14]} 4. Bg2 {[%clk 01:32:07]} {[%emt 00:00:09]} dxc4
{[%clk 01:31:09]} {[%emt 00:00:36]} 5. Nf3 {[%clk 01:32:15]} {[%emt 00:00:22]}
c5 {[%clk 01:31:24]} {[%emt 00:00:14]} 6. Qa4+ {[%clk 01:32:40]} {[%emt
00:00:06]} Bd7 {[%clk 01:27:53]} {[%emt 00:04:01]} 7. Qxc4 {[%clk 01:33:01]}
{[%emt 00:00:09]} Nc6 {[%clk 01:25:07]} {[%emt 00:03:16]} 8. O-O {[%clk
01:32:35]} {[%emt 00:00:56]} cxd4 {[%clk 01:25:15]} {[%emt 00:00:23]} 9. Nxd4
{[%clk 01:31:25]} {[%emt 00:01:40]} Rc8 {[%clk 01:25:35]} {[%emt 00:00:10]} 10.
Nc3 {[%clk 01:29:13]} {[%emt 00:02:41]} Nxd4 {[%clk 01:25:47]} {[%emt
00:00:18]} 11. Qxd4 {[%clk 01:29:35]} {[%emt 00:00:08]} Bc5 {[%clk 01:26:10]}
{[%emt 00:00:07]} 12. Qh4 {[%clk 01:28:08]} {[%emt 00:01:57]} h6 {[%clk
01:23:50]} {[%emt 00:02:51]} 13. Bxb7 {[%clk 01:24:37]} {[%emt 00:04:02]} Rb8
{[%clk 01:24:03]} {[%emt 00:00:15]} 14. Bf3 {[%clk 01:22:19]} {[%emt 00:02:49]}
Rb4 {[%clk 01:23:39]} {[%emt 00:00:54]} 15. e4 {[%clk 01:15:10]} {[%emt
00:07:39]} Bc6 {[%clk 01:16:49]} {[%emt 00:07:20]} 16. a3 {[%clk 01:10:24]}
{[%emt 00:05:17]} Rb3 {[%clk 01:13:05]} {[%emt 00:04:13]} 17. e5 {[%clk
00:53:26]} {[%emt 00:17:29]} Bxf3 {[%clk 01:09:45]} {[%emt 00:03:50]} 18. exf6
{[%clk 00:53:44]} {[%emt 00:00:11]} Qd4 {[%clk 00:56:10]} {[%emt 00:14:05]} 19.
fxg7 {[%clk 00:51:35]} {[%emt 00:02:40]} Rg8 {[%clk 00:55:15]} {[%emt
00:01:23]} 20. Qxh6 {[%clk 00:49:53]} {[%emt 00:02:13]} Qxg7 {[%clk 00:52:36]}
{[%emt 00:03:09]} 21. Qxg7 {[%clk 00:47:44]} {[%emt 00:02:40]} Rxg7 {[%clk
00:52:53]} {[%emt 00:00:12]} 22. Be3 {[%clk 00:46:55]} {[%emt 00:01:20]} Bd6
{[%clk 00:51:53]} {[%emt 00:01:29]} 23. Rfe1 {[%clk 00:40:39]} {[%emt
00:06:46]} e5 {[%clk 00:46:21]} {[%emt 00:06:02]} 24. Bd4 {[%clk 00:36:06]}
{[%emt 00:05:03]} f6 {[%clk 00:44:26]} {[%emt 00:02:25]} 25. Ne4 {[%clk
00:35:58]} {[%emt 00:00:37]} Bxe4 {[%clk 00:38:56]} {[%emt 00:06:00]} 26. Rxe4
{[%clk 00:36:21]} {[%emt 00:00:08]} Rc7 {[%clk 00:39:05]} {[%emt 00:00:21]} 27.
Bc3 {[%clk 00:35:05]} {[%emt 00:01:47]} Kf7 {[%clk 00:37:21]} {[%emt 00:02:14]}
28. Ra4 {[%clk 00:35:02]} {[%emt 00:00:34]} Bc5 {[%clk 00:36:39]} {[%emt
00:01:12]} 29. Rd1 {[%clk 00:34:06]} {[%emt 00:01:26]} Kg6 {[%clk 00:35:08]}
{[%emt 00:02:00]} 30. Kg2 {[%clk 00:33:41]} {[%emt 00:00:55]} Be7 {[%clk
00:31:24]} {[%emt 00:04:13]} 31. Rd5 {[%clk 00:32:39]} {[%emt 00:01:33]} Bc5
{[%clk 00:29:48]} {[%emt 00:02:06]} 32. Rc4 {[%clk 00:32:07]} {[%emt 00:01:03]}
Bb6 {[%clk 00:28:53]} {[%emt 00:01:25]} 33. Rxc7 {[%clk 00:32:29]} {[%emt
00:00:08]} Bxc7 {[%clk 00:29:16]} {[%emt 00:00:07]} 34. g4 {[%clk 00:31:09]}
{[%emt 00:01:50]} f5 {[%clk 00:28:26]} {[%emt 00:01:21]} 35. Rc5 {[%clk
00:30:29]} {[%emt 00:01:09]} Bb6 {[%clk 00:28:37]} {[%emt 00:00:18]} 36. gxf5+
{[%clk 00:30:45]} {[%emt 00:00:15]} Kxf5 {[%clk 00:28:53]} {[%emt 00:00:14]} 37.
Rxe5+ {[%clk 00:31:05]} {[%emt 00:00:11]} Kg6 {[%clk 00:29:00]} {[%emt
00:00:22]} 38. a4 {[%clk 00:31:06]} {[%emt 00:00:29]} 1-0

[Event "Smuk Skak GM Tournament 2021"]
[Site "Skanderborg, Denmark"]
[Date "2021.08.21"]
[Round "8.5"]
[White "Brunello, Sabino"]
[Black "Nagy, Gabor"]
[Result "1/2-1/2"]
[TimeControl "90 minutes + 30 minutes at move 40, 30 secs pr move from move 1"]
[WhiteTitle "GM"]
[BlackTitle "GM"]
[WhiteFideId "813613"]
[BlackFideId "737119"]
[WhiteElo "2517"]
[BlackElo "2518"]

1. d4 {[%clk 01:30:57]} {[%emt 05:53:40]} Nf6 {[%clk 01:30:47]} {[%emt
00:00:06]} 2. c4 {[%clk 01:31:15]} {[%emt 00:00:13]} e6 {[%clk 01:31:04]}
{[%emt 00:00:12]} 3. Nc3 {[%clk 01:31:30]} {[%emt 00:00:16]} d5 {[%clk
01:31:16]} {[%emt 00:00:17]} 4. Bg5 {[%clk 01:31:18]} {[%emt 00:00:42]} Be7
{[%clk 01:30:11]} {[%emt 00:01:35]} 5. e3 {[%clk 01:31:16]} {[%emt 00:00:33]}
O-O {[%clk 01:30:21]} {[%emt 00:00:19]} 6. Nf3 {[%clk 01:31:41]} {[%emt
00:00:05]} h6 {[%clk 01:30:16]} {[%emt 00:00:35]} 7. Bh4 {[%clk 01:27:07]}
{[%emt 00:05:04]} b6 {[%clk 01:28:33]} {[%emt 00:02:13]} 8. Bd3 {[%clk
01:26:59]} {[%emt 00:00:38]} Bb7 {[%clk 01:28:20]} {[%emt 00:00:43]} 9. cxd5
{[%clk 01:24:30]} {[%emt 00:03:01]} Nxd5 {[%clk 01:26:14]} {[%emt 00:02:35]} 10.
Bxe7 {[%clk 01:24:04]} {[%emt 00:00:56]} Qxe7 {[%clk 01:26:31]} {[%emt
00:00:13]} 11. Rc1 {[%clk 01:23:34]} {[%emt 00:01:01]} Nxc3 {[%clk 01:23:36]}
{[%emt 00:03:24]} 12. Rxc3 {[%clk 01:23:41]} {[%emt 00:00:24]} Rc8 {[%clk
01:21:55]} {[%emt 00:02:11]} 13. Qc2 {[%clk 01:17:37]} {[%emt 00:06:34]} Na6
{[%clk 01:19:15]} {[%emt 00:03:10]} 14. Bxa6 {[%clk 01:09:55]} {[%emt
00:08:12]} Bxa6 {[%clk 01:19:34]} {[%emt 00:00:11]} 15. Ne5 {[%clk 01:09:26]}
{[%emt 00:01:00]} c5 {[%clk 01:19:43]} {[%emt 00:00:20]} 16. dxc5 {[%clk
01:09:50]} {[%emt 00:00:06]} Rxc5 {[%clk 01:19:27]} {[%emt 00:00:46]} 17. Rxc5
{[%clk 01:04:44]} {[%emt 00:05:36]} bxc5 {[%clk 01:19:47]} {[%emt 00:00:09]} 18.
Nc4 {[%clk 01:05:07]} {[%emt 00:00:08]} Qb7 {[%clk 01:19:13]} {[%emt 00:01:04]}
19. O-O {[%clk 01:05:01]} {[%emt 00:00:37]} Bxc4 {[%clk 01:19:35]} {[%emt
00:00:07]} 20. Qxc4 {[%clk 01:05:28]} {[%emt 00:00:03]} Qxb2 {[%clk 01:19:49]}
{[%emt 00:00:15]} 21. g3 {[%clk 01:04:39]} {[%emt 00:01:19]} Rd8 {[%clk
01:19:07]} {[%emt 00:01:11]} 22. Qxc5 {[%clk 00:58:02]} {[%emt 00:07:08]} Qxa2
{[%clk 01:19:10]} {[%emt 00:00:26]} 23. Qe7 {[%clk 00:58:28]} {[%emt 00:00:04]}
Rb8 {[%clk 01:17:21]} {[%emt 00:02:18]} 24. Rd1 {[%clk 00:47:08]} {[%emt
00:11:50]} a5 {[%clk 01:16:19]} {[%emt 00:01:33]} 25. Kg2 {[%clk 00:40:10]}
{[%emt 00:07:27]} Qa4 {[%clk 01:13:46]} {[%emt 00:03:03]} 26. Rd4 {[%clk
00:36:48]} {[%emt 00:03:52]} Qc6+ {[%clk 01:13:54]} {[%emt 00:00:22]} 27. Kh3
{[%clk 00:36:03]} {[%emt 00:01:15]} Qe8 {[%clk 01:09:42]} {[%emt 00:04:42]} 28.
Qc7 {[%clk 00:34:57]} {[%emt 00:01:37]} Qc8 {[%clk 01:08:45]} {[%emt 00:01:27]}
29. Qe7 {[%clk 00:31:43]} {[%emt 00:03:44]} Qe8 {[%clk 01:04:47]} {[%emt
00:04:27]} 30. Qc7 {[%clk 00:31:09]} {[%emt 00:01:05]} Qb5 {[%clk 01:04:39]}
{[%emt 00:00:37]} 31. Kg2 {[%clk 00:26:32]} {[%emt 00:05:07]} Rf8 {[%clk
01:02:00]} {[%emt 00:03:09]} 32. e4 {[%clk 00:20:47]} {[%emt 00:06:16]} Ra8
{[%clk 00:59:24]} {[%emt 00:03:05]} 33. Rd7 {[%clk 00:16:28]} {[%emt 00:04:50]}
Rf8 {[%clk 00:59:37]} {[%emt 00:00:17]} 34. Rd4 {[%clk 00:16:31]} {[%emt
00:00:28]} Ra8 {[%clk 00:59:44]} {[%emt 00:00:22]} 35. Rd7 {[%clk 00:16:56]}
{[%emt 00:00:06]} Rf8 {[%clk 01:00:09]} {[%emt 00:00:05]} 1/2-1/2

[Event "Smuk Skak GM Tournament 2021"]
[Site "Skanderborg, Denmark"]
[Date "2021.08.22"]
[Round "9.1"]
[White "Svane, Frederik"]
[Black "Solodovnichenko, Yuri"]
[Result "0-1"]
[TimeControl "90 minutes + 30 minutes at move 40, 30 secs pr move from move 1"]
[WhiteTitle "IM"]
[BlackTitle "GM"]
[WhiteFideId "12923044"]
[BlackFideId "14104369"]
[WhiteElo "2438"]
[BlackElo "2546"]

1. e4 {[%clk 01:27:42]} {[%emt 00:03:18]} d6 {[%clk 01:30:39]} {[%emt
00:00:21]} 2. d4 {[%clk 01:27:12]} {[%emt 00:01:00]} Nf6 {[%clk 01:31:04]}
{[%emt 00:00:06]} 3. Nd2 {[%clk 01:27:00]} {[%emt 00:00:43]} e5 {[%clk
01:17:10]} {[%emt 00:14:24]} 4. c3 {[%clk 01:27:24]} {[%emt 00:00:06]} Qe7
{[%clk 01:08:47]} {[%emt 00:08:53]} 5. dxe5 {[%clk 01:09:03]} {[%emt 00:18:52]}
dxe5 {[%clk 01:08:23]} {[%emt 00:00:53]} 6. Ngf3 {[%clk 01:08:24]} {[%emt
00:01:09]} Nc6 {[%clk 01:07:37]} {[%emt 00:01:15]} 7. Bc4 {[%clk 01:07:13]}
{[%emt 00:01:41]} Bd7 {[%clk 01:03:54]} {[%emt 00:04:13]} 8. a4 {[%clk
01:05:30]} {[%emt 00:02:13]} h6 {[%clk 00:57:06]} {[%emt 00:07:17]} 9. b4
{[%clk 01:04:44]} {[%emt 00:01:17]} O-O-O {[%clk 00:44:36]} {[%emt 00:13:00]}
10. Qb3 {[%clk 00:53:48]} {[%emt 00:11:27]} Nh5 {[%clk 00:44:47]} {[%emt
00:00:19]} 11. g3 {[%clk 00:47:05]} {[%emt 00:07:13]} Qf6 {[%clk 00:35:26]}
{[%emt 00:09:51]} 12. h3 {[%clk 00:32:13]} {[%emt 00:15:23]} Be7 {[%clk
00:29:50]} {[%emt 00:06:06]} 13. a5 {[%clk 00:31:40]} {[%emt 00:01:04]} Rhf8
{[%clk 00:25:27]} {[%emt 00:04:52]} 14. b5 {[%clk 00:23:04]} {[%emt 00:09:07]}
Nb8 {[%clk 00:25:56]} {[%emt 00:00:02]} 15. a6 {[%clk 00:23:27]} {[%emt
00:00:06]} b6 {[%clk 00:26:07]} {[%emt 00:00:18]} 16. Bd5 {[%clk 00:23:41]}
{[%emt 00:00:16]} c6 {[%clk 00:25:06]} {[%emt 00:01:31]} 17. bxc6 {[%clk
00:21:02]} {[%emt 00:03:10]} Bxc6 {[%clk 00:25:22]} {[%emt 00:00:14]} 18. c4
{[%clk 00:21:25]} {[%emt 00:00:07]} Bc5 {[%clk 00:21:38]} {[%emt 00:04:14]} 19.
Bb2 {[%clk 00:20:54]} {[%emt 00:01:01]} Nd7 {[%clk 00:21:13]} {[%emt 00:00:54]}
20. Qd3 {[%clk 00:16:40]} {[%emt 00:04:44]} Qd6 {[%clk 00:17:43]} {[%emt
00:04:00]} 21. Nh4 {[%clk 00:13:40]} {[%emt 00:03:30]} g6 {[%clk 00:17:22]}
{[%emt 00:00:52]} 22. O-O {[%clk 00:12:50]} {[%emt 00:01:20]} f5 {[%clk
00:16:35]} {[%emt 00:01:17]} 23. Rad1 {[%clk 00:12:38]} {[%emt 00:00:42]} f4
{[%clk 00:13:21]} {[%emt 00:03:44]} 24. Kg2 {[%clk 00:11:30]} {[%emt 00:01:38]}
Ng7 {[%clk 00:11:40]} {[%emt 00:02:11]} 25. Ndf3 {[%clk 00:10:28]} {[%emt
00:01:32]} g5 {[%clk 00:08:35]} {[%emt 00:03:34]} 26. Nf5 {[%clk 00:10:55]}
{[%emt 00:00:04]} Nxf5 {[%clk 00:08:42]} {[%emt 00:00:24]} 27. exf5 {[%clk
00:11:23]} {[%emt 00:00:01]} Rde8 {[%clk 00:08:16]} {[%emt 00:00:55]} 28. Rfe1
{[%clk 00:09:29]} {[%emt 00:02:24]} Bb4 {[%clk 00:06:54]} {[%emt 00:01:53]} 29.
Bxe5 {[%clk 00:08:21]} {[%emt 00:01:37]} Nxe5 {[%clk 00:02:45]} {[%emt
00:04:39]} 30. Rxe5 {[%clk 00:08:47]} {[%emt 00:00:05]} Rxe5 {[%clk 00:01:21]}
{[%emt 00:01:54]} 31. Nxe5 {[%clk 00:09:00]} {[%emt 00:00:16]} Ba4 {[%clk
00:01:20]} {[%emt 00:00:31]} 32. Be6+ {[%clk 00:02:56]} {[%emt 00:06:34]} Kc7
{[%clk 00:01:49]} {[%emt 00:00:01]} 33. Qf3 {[%clk 00:03:17]} {[%emt 00:00:08]}
Qxd1 {[%clk 00:01:10]} {[%emt 00:01:09]} 34. Qb7+ {[%clk 00:03:43]} {[%emt
00:00:04]} Kd6 {[%clk 00:01:18]} {[%emt 00:00:22]} 35. Bd5 {[%clk 00:01:42]}
{[%emt 00:02:32]} Kxe5 {[%clk 00:01:27]} {[%emt 00:00:21]} 36. Qg7+ {[%clk
00:02:09]} {[%emt 00:00:03]} Rf6 {[%clk 00:01:45]} {[%emt 00:00:12]} 37. Qxa7
{[%clk 00:02:35]} {[%emt 00:00:04]} fxg3 {[%clk 00:01:16]} {[%emt 00:00:58]} 38.
Qc7+ {[%clk 00:02:42]} {[%emt 00:00:23]} Bd6 {[%clk 00:00:34]} {[%emt
00:01:12]} 39. Qxb6 {[%clk 00:03:11]} {[%emt 00:00:01]} Qd4 {[%clk 00:00:36]}
{[%emt 00:00:28]} 40. Qxd4+ {[%clk 00:03:25]} {[%emt 00:00:17]} Kxd4 {[%clk
00:01:04]} {[%emt 00:00:01]} 41. a7 {[%clk 00:03:43]} {[%emt 00:00:12]} Rf8
{[%clk 00:01:10]} {[%emt 00:00:24]} 42. fxg3 {[%clk 00:04:03]} {[%emt
00:00:10]} Bc2 {[%clk 00:01:05]} {[%emt 00:00:36]} 43. a8=Q {[%clk 00:03:39]}
{[%emt 00:00:54]} Rxa8 {[%clk 00:01:30]} {[%emt 00:00:05]} 44. Bxa8 {[%clk
00:04:05]} {[%emt 00:00:04]} Bxf5 {[%clk 00:01:54]} {[%emt 00:00:06]} 45. h4
{[%clk 00:04:13]} {[%emt 00:00:22]} g4 {[%clk 00:02:15]} {[%emt 00:00:08]} 0-1

[Event "Smuk Skak GM Tournament 2021"]
[Site "Skanderborg, Denmark"]
[Date "2021.08.22"]
[Round "9.2"]
[White "Nagy, Gabor"]
[Black "Lindgren, Phillip"]
[Result "1/2-1/2"]
[TimeControl "90 minutes + 30 minutes at move 40, 30 secs pr move from move 1"]
[WhiteTitle "GM"]
[BlackTitle "IM"]
[WhiteFideId "737119"]
[BlackFideId "1713230"]
[WhiteElo "2518"]
[BlackElo "2356"]

1. c4 {[%clk 01:30:53]} {[%emt 00:00:06]} e6 {[%clk 01:29:25]} {[%emt
00:01:36]} 2. d4 {[%clk 01:30:51]} {[%emt 00:00:31]} Nf6 {[%clk 01:29:32]}
{[%emt 00:00:23]} 3. Nc3 {[%clk 01:30:44]} {[%emt 00:00:37]} Bb4 {[%clk
01:28:51]} {[%emt 00:01:11]} 4. e3 {[%clk 01:30:26]} {[%emt 00:00:48]} O-O
{[%clk 01:28:38]} {[%emt 00:00:43]} 5. Bd2 {[%clk 01:30:24]} {[%emt 00:00:32]}
Bxc3 {[%clk 01:19:13]} {[%emt 00:09:56]} 6. Bxc3 {[%clk 01:30:18]} {[%emt
00:00:35]} Ne4 {[%clk 01:19:34]} {[%emt 00:00:08]} 7. Rc1 {[%clk 01:24:06]}
{[%emt 00:06:43]} Nxc3 {[%clk 01:16:05]} {[%emt 00:03:59]} 8. Rxc3 {[%clk
01:22:03]} {[%emt 00:02:33]} d6 {[%clk 01:15:06]} {[%emt 00:01:29]} 9. Nf3
{[%clk 01:18:32]} {[%emt 00:04:01]} Qe7 {[%clk 01:11:27]} {[%emt 00:04:09]} 10.
Be2 {[%clk 01:16:16]} {[%emt 00:02:46]} e5 {[%clk 01:06:10]} {[%emt 00:05:49]}
11. c5 {[%clk 01:14:29]} {[%emt 00:02:16]} dxc5 {[%clk 00:55:35]} {[%emt
00:11:05]} 12. Nxe5 {[%clk 01:10:57]} {[%emt 00:04:01]} cxd4 {[%clk 00:53:31]}
{[%emt 00:02:35]} 13. Qxd4 {[%clk 01:07:16]} {[%emt 00:04:11]} c6 {[%clk
00:49:47]} {[%emt 00:04:14]} 14. O-O {[%clk 01:03:37]} {[%emt 00:04:07]} Rd8
{[%clk 00:45:35]} {[%emt 00:04:45]} 15. Qf4 {[%clk 01:02:46]} {[%emt 00:01:20]}
Be6 {[%clk 00:44:03]} {[%emt 00:02:03]} 16. Bc4 {[%clk 01:00:13]} {[%emt
00:03:03]} Nd7 {[%clk 00:41:40]} {[%emt 00:02:54]} 17. Nf3 {[%clk 00:58:23]}
{[%emt 00:02:20]} Nb6 {[%clk 00:37:54]} {[%emt 00:04:16]} 18. Bxe6 {[%clk
00:58:23]} {[%emt 00:00:30]} Qxe6 {[%clk 00:38:13]} {[%emt 00:00:12]} 19. Rb3
{[%clk 00:58:21]} {[%emt 00:00:32]} Rd7 {[%clk 00:34:19]} {[%emt 00:04:23]} 20.
h3 {[%clk 00:58:02]} {[%emt 00:00:49]} h6 {[%clk 00:32:32]} {[%emt 00:02:17]}
21. Nd4 {[%clk 00:56:17]} {[%emt 00:02:15]} Qc4 {[%clk 00:27:14]} {[%emt
00:05:48]} 22. Qf5 {[%clk 00:55:42]} {[%emt 00:01:05]} Rd5 {[%clk 00:20:00]}
{[%emt 00:07:44]} 23. Qb1 {[%clk 00:55:50]} {[%emt 00:00:22]} Rd7 {[%clk
00:17:40]} {[%emt 00:02:50]} 24. Rc1 {[%clk 00:55:16]} {[%emt 00:01:03]} Qd5
{[%clk 00:17:22]} {[%emt 00:00:49]} 25. Rbc3 {[%clk 00:55:04]} {[%emt
00:00:43]} Qe5 {[%clk 00:14:18]} {[%emt 00:03:34]} 26. Rc5 {[%clk 00:54:53]}
{[%emt 00:00:40]} Qf6 {[%clk 00:13:29]} {[%emt 00:01:19]} 27. b4 {[%clk
00:54:30]} {[%emt 00:00:53]} a6 {[%clk 00:10:57]} {[%emt 00:03:02]} 28. Qb3
{[%clk 00:54:02]} {[%emt 00:00:58]} Re7 {[%clk 00:06:38]} {[%emt 00:04:49]} 29.
a4 {[%clk 00:53:48]} {[%emt 00:00:44]} Nd7 {[%clk 00:06:14]} {[%emt 00:00:54]}
30. Rf5 {[%clk 00:52:16]} {[%emt 00:02:01]} Qg6 {[%clk 00:06:12]} {[%emt
00:00:31]} 31. Rf3 {[%clk 00:52:21]} {[%emt 00:00:25]} 1/2-1/2